[Event "Nordic Chess-ch 2019"]
[Site "Sarpsborg"]
[Date "2019.06.22"]
[Round "3.29"]
[White "Nordtug, Per Oistein"]
[Black "Strand, Vetle Bjorge"]
[Result "0-1"]
[ECO "E61"]
[WhiteElo "1456"]
[BlackElo "1609"]
[Annotator "NA"]
[PlyCount "116"]
[EventDate "2019.06.21"]
[EventType "swiss"]
[EventCountry "NOR"]
[SourceTitle "playchess.com"]
[Source "ChessBase"]
[SourceQuality "1"]
[TimeControl "40/5400+30:1800+30"]

1. c4 {[%emt 0:00:00]} c5 {[%emt 0:00:00]} 2. g3 {[%emt 0:00:19]} g6 {[%emt 0:00:01]} 3. Bg2 {[%emt 0:00:12]} Bg7 {[%emt 0:00:06]} 4. Nc3 {[%emt 0:00:15]} Nc6 {[%emt 0:00:18]} 5. e3 {[%emt 0:00:12]} Nf6 {[%emt 0:00:14]} 6. Nge2 {[%emt 0:00:13]} O-O {[%emt 0:00:18]} 7. O-O {[%emt 0:00:14]} d6 {[%emt 0:00:24]} 8. b3 {[%emt 0:01:31]} Bf5 {[%emt 0:01:31]} 9. Bb2 {[%emt 0:00:31]} Qd7 {[%emt 0:06:44]} 10. d4 {[%emt 0:05:02]} cxd4 {[%emt 0:00:58]} 11. exd4 {[%emt 0:01:26]} Nb4 {[%emt 0:09:08]} 12. a3 {[%emt 0:07:25]} Nd3 {[%emt 0:02:29]} 13. Qd2 {[%emt 0:00:08]} Nxb2 {[%emt 0:00:07]} 14. Qxb2 {[%emt 0:00:05]} Bh3 {[%emt 0:03:33]} 15. Rad1 {[%emt 0:02:12]} Bxg2 {[%emt 0:00:15]} 16. Kxg2 {[%emt 0:00:16]} Rac8 {[%emt 0:05:20]} 17. Rfe1 {[%emt 0:01:18]} Nh5 {[%emt 0:02:52]} 18. c5 {[%emt 0:03:37]} Qc6+ {[%emt 0:03:20]} 19. Kg1 {[%emt 0:08:16]} dxc5 {[%emt 0:01:44]} 20. d5 {[%emt 0:00:09]} Qd7 {[%emt 0:01:49]} 21. Qc2 {[%emt 0:02:17]} Rfd8 {[%emt 0:02:57]} 22. Ne4 {[%emt 0:02:45]} Nf6 {[%emt 0:12:35]} 23. N2c3 {[%emt 0:10:37]} b6 {[%emt 0:09:41]} 24. Qd3 {[%emt 0:07:29]} Qf5 {[%emt 0:11:57]} 25. Nxf6+ {[%emt 0:10:30]} Qxf6 {[%emt 0:00:51]} 26. Ne4 {[%emt 0:05:15]} Qf5 {[%emt 0:06:02]} 27. a4 {[%emt 0:04:01]} Bd4 {[%emt 0:01:48]} 28. Qc4 {[%emt 0:01:32]} Qxd5 {[%emt 0:01:24]} 29. Nd2 {[%emt 0:02:16]} Qxc4 {[%emt 0:02:20]} 30. Nxc4 {[%emt 0:00:37]} Kf8 {[%emt 0:00:44]} 31. Kg2 {[%emt 0:00:24]} Bc3 {[%emt 0:01:32]} 32. Rxd8+ {[%emt 0:00:40]} Rxd8 {[%emt 0:00:14]} 33. Re2 {[%emt 0:00:28]} Rd3 {[%emt 0:01:37]} 34. Re3 {[%emt 0:01:16]} Rxe3 {[%emt 0:00:14]} 35. Nxe3 {[%emt 0:00:04]} e6 {[%emt 0:00:31]} 36. Kf3 {[%emt 0:00:11]} Ke7 {[%emt 0:00:26]} 37. h3 {[%emt 0:00:29]} Bd4 {[%emt 0:00:36]} 38. Nc4 {[%emt 0:01:00]} e5 {[%emt 0:02:02]} 39. Ke2 {[%emt 0:02:47]} Ke6 {[%emt 0:01:28]} 40. Nd2 {[%emt 0:01:19]} f5 {[%emt 0:00:46]} 41. f3 {[%emt 0:31:06]} Kd5 {[%emt 0:32:44]} 42. g4 {[%emt 0:01:31]} e4 {[%emt 0:02:30]} 43. Nb1 {[%emt 0:01:23]} Ke5 {[%emt 0:00:00]} 44. Na3 {[%emt 0:00:00]} Kf4 {[%emt 0:00:00]} 45. fxe4 {[%emt 0:00:00]} fxe4 {[%emt 0:00:00]} 46. Nb5 {[%emt 0:00:00]} a6 {[%emt 0:00:00]} 47. Nc7 {[%emt 0:00:00]} Kg3 {[%emt 0:00:00]} 48. Nxa6 {[%emt 0:00:00]} Kxh3 {[%emt 0:00:00]} 49. g5 {[%emt 0:00:00]} Kg4 {[%emt 0:00:00]} 50. Nc7 {[%emt 0:00:00]} Kxg5 {[%emt 0:00:00]} 51. Nd5 {[%emt 0:00:00]} c4 {[%emt 0:00:00]} 52. bxc4 {[%emt 0:00:00]} h5 {[%emt 0:00:00]} 53. Ne3 {[%emt 0:00:00]} h4 {[%emt 0:00:00]} 54. Nf1 {[%emt 0:00:00]} Kf4 {[%emt 0:00:00]} 55. Nd2 {[%emt 0:00:00]} h3 {[%emt 0:01:02]} 56. Nf1 {[%emt 0:00:00]} g5 {[%emt 0:00:25]} 57. Nh2 {[%emt 0:00:00]} g4 {[%emt 0:00:13]} 58. Nf1 {[%emt 0:00:00]} g3 {[%emt 0:00:30]} 0-1

[Event "Nordic Chess-ch 2019"]
[Site "Sarpsborg"]
[Date "2019.06.22"]
[Round "3.30"]
[White "Kro, Andreas Fuskeland"]
[Black "Kristiansen, Terje"]
[Result "1/2-1/2"]
[ECO "D10"]
[WhiteElo "1565"]
[BlackElo "1330"]
[Annotator "NA"]
[PlyCount "85"]
[EventDate "2019.06.21"]
[EventType "swiss"]
[EventCountry "NOR"]
[SourceTitle "playchess.com"]
[Source "ChessBase"]
[SourceQuality "1"]
[TimeControl "40/5400+30:1800+30"]

1. d4 {[%emt 0:00:00]} d5 {[%emt 0:00:00]} 2. c4 {[%emt 0:00:00]} c6 {[%emt 0:00:02]} 3. Nc3 {[%emt 0:00:00]} dxc4 {[%emt 0:01:51]} 4. e4 {[%emt 0:01:10]} b5 {[%emt 0:01:15]} 5. a4 {[%emt 0:00:57]} b4 {[%emt 0:01:15]} 6. Na2 {[%emt 0:00:59]} a5 {[%emt 0:03:15]} 7. Bxc4 {[%emt 0:03:04]} Ba6 {[%emt 0:01:32]} 8. Bxa6 {[%emt 0:03:56]} Nxa6 {[%emt 0:00:03]} 9. Nf3 {[%emt 0:02:08]} e6 {[%emt 0:03:54]} 10. O-O {[%emt 0:02:13]} Nf6 {[%emt 0:02:51]} 11. Re1 {[%emt 0:01:44]} Be7 {[%emt 0:01:27]} 12. Bf4 {[%emt 0:02:41]} O-O {[%emt 0:03:49]} 13. Nc1 {[%emt 0:09:08]} c5 {[%emt 0:00:46]} 14. Nb3 {[%emt 0:04:09]} c4 {[%emt 0:00:54]} 15. Nbd2 {[%emt 0:00:34]} c3 {[%emt 0:02:43]} 16. bxc3 {[%emt 0:02:15]} bxc3 {[%emt 0:00:08]} 17. Nb1 {[%emt 0:00:51]} Bb4 {[%emt 0:02:50]} 18. Qc2 {[%emt 0:06:47]} Rc8 {[%emt 0:01:39]} 19. Bg5 {[%emt 0:09:44]} Qc7 {[%emt 0:12:40]} 20. Bc1 {[%emt 0:09:46]} Rfd8 {[%emt 0:06:33]} 21. Na3 {[%emt 0:05:04]} Bxa3 {[%emt 0:04:38]} 22. Bxa3 {[%emt 0:00:10]} Nb4 {[%emt 0:00:13]} 23. Bxb4 {[%emt 0:00:05]} axb4 {[%emt 0:00:38]} 24. Rad1 {[%emt 0:07:36]} Qc4 {[%emt 0:03:20]} 25. Rb1 {[%emt 0:05:47]} Rb8 {[%emt 0:03:03]} 26. Qb3 {[%emt 0:02:13]} Rdc8 {[%emt 0:03:17]} 27. Qxc4 {[%emt 0:03:15]} Rxc4 {[%emt 0:00:10]} 28. Rb3 {[%emt 0:00:59]} c2 {[%emt 0:03:03]} 29. Rc1 {[%emt 0:01:10]} Nxe4 {[%emt 0:02:57]} 30. Ne1 {[%emt 0:00:35]} Rbc8 {[%emt 0:01:41]} 31. f3 {[%emt 0:01:49]} Nd2 {[%emt 0:00:41]} 32. Rb2 {[%emt 0:00:13]} b3 {[%emt 0:01:32]} 33. Kf2 {[%emt 0:01:40]} Rxa4 {[%emt 0:04:37]} 34. Ke2 {[%emt 0:00:17]} Rxd4 {[%emt 0:01:10]} 35. Nd3 {[%emt 0:00:38]} Nc4 {[%emt 0:04:42]} 36. Rxb3 {[%emt 0:00:52]} Na5 {[%emt 0:01:48]} 37. Ra3 {[%emt 0:03:51]} Nb7 {[%emt 0:00:43]} 38. Ra2 {[%emt 0:01:33]} Rdc4 {[%emt 0:00:15]} 39. Kd2 {[%emt 0:01:08]} Nd6 {[%emt 0:00:44]} 40. Raxc2 {[%emt 0:01:13]} Rxc2+ {[%emt 0:00:05]} 41. Rxc2 {[%emt 0:30:11]} Rxc2+ {[%emt 0:30:09]} 42. Kxc2 {[%emt 0:00:05]} Kf8 {[%emt 0:00:46]} 43. Kc3 {[%emt 0:09:00]} 1/2-1/2

[Event "Nordic Chess-ch 2019"]
[Site "Sarpsborg"]
[Date "2019.06.22"]
[Round "3.31"]
[White "Dogani, Avduraim"]
[Black "Holst, Conny"]
[Result "1-0"]
[ECO "B72"]
[WhiteElo "2107"]
[BlackElo "2197"]
[Annotator "ChessBase"]
[PlyCount "97"]
[EventDate "2019.06.21"]
[EventType "swiss"]
[EventCountry "NOR"]
[SourceTitle "playchess.com"]
[Source "ChessBase"]
[SourceQuality "1"]
[TimeControl "40/5400+30:1800+30"]

1. e4 {[%emt 0:00:32]} c5 {[%emt 0:00:00]} 2. Nf3 {[%emt 0:00:19]} d6 {[%emt 0:00:03]} 3. d4 {[%emt 0:00:26]} cxd4 {[%emt 0:00:08]} 4. Nxd4 {[%emt 0:00:06]} Nf6 {[%emt 0:00:08]} 5. Nc3 {[%emt 0:00:54]} Nc6 {[%emt 0:01:21]} 6. Be2 {[%emt 0:02:25]} g6 {[%emt 0:01:24]} 7. Be3 {[%emt 0:01:49]} Bg7 {[%emt 0:01:01]} 8. Qd2 {[%emt 0:00:36]} O-O {[%emt 0:06:13]} 9. h3 {[%emt 0:06:41]} d5 {[%emt 0:08:19]} 10. exd5 {[%emt 0:01:24]} Nxd5 {[%emt 0:04:18]} 11. Nxd5 {[%emt 0:00:17]} Nxd4 {[%emt 0:11:26]} 12. c4 {[%emt 0:08:20]} Nxe2 {[%emt 0:02:12]} 13. Qxe2 {[%emt 0:01:08]} e6 {[%emt 0:04:49]} 14. Nc3 {[%emt 0:00:56]} Qe7 {[%emt 0:12:36]} 15. O-O {[%emt 0:01:01]} b6 {[%emt 0:01:40]} 16. Rfd1 {[%emt 0:01:24]} Bb7 {[%emt 0:01:01]} 17. Rd2 {[%emt 0:05:00]} Rac8 {[%emt 0:08:42]} 18. Nb5 {[%emt 0:04:58]} Bc6 {[%emt 0:01:30]} 19. Nd4 {[%emt 0:01:40]} Bb7 {[%emt 0:04:33]} 20. Rad1 {[%emt 0:00:55]} Rfd8 {[%emt 0:02:48]} 21. b3 {[%emt 0:03:06]} h6 {[%emt 0:01:57]} 22. Nb5 {[%emt 0:00:32]} Ra8 {[%emt 0:10:20]} 23. Rxd8+ {[%emt 0:03:00]} Rxd8 {[%emt 0:00:09]} 24. Rxd8+ {[%emt 0:00:28]} Qxd8 {[%emt 0:00:08]} 25. Nxa7 {[%emt 0:01:04]} Qa8 {[%emt 0:03:06]} 26. Bxb6 {[%emt 0:02:19]} Bxg2 {[%emt 0:00:08]} 27. Qd3 {[%emt 0:06:34]} Bf6 {[%emt 0:03:25]} 28. c5 {[%emt 0:07:48]} Bh1 {[%emt 0:04:00]} 29. c6 {[%emt 0:00:34]} Bxc6 {[%emt 0:00:14]} 30. Nxc6 {[%emt 0:02:13]} Qxc6 {[%emt 0:00:07]} 31. Be3 {[%emt 0:00:22]} Qf3 {[%emt 0:01:32]} 32. Qf1 {[%emt 0:00:33]} g5 {[%emt 0:01:45]} 33. a4 {[%emt 0:02:18]} h5 {[%emt 0:01:38]} 34. Qg2 {[%emt 0:05:24]} Qd1+ {[%emt 0:00:13]} 35. Kh2 {[%emt 0:00:48]} Qxb3 {[%emt 0:01:24]} 36. Bxg5 {[%emt 0:01:24]} Bxg5 {[%emt 0:00:07]} 37. Qxg5+ {[%emt 0:00:13]} Kf8 {[%emt 0:00:40]} 38. Qc5+ {[%emt 0:00:18]} Kg8 {[%emt 0:01:04]} 39. a5 {[%emt 0:00:56]} Qb8+ {[%emt 0:00:49]} 40. Kg2 {[%emt 0:00:10]} Qb7+ {[%emt 0:00:42]} 41. Kg3 {[%emt 0:30:46]} Qb8+ {[%emt 0:08:06]} 42. Kf3 {[%emt 0:00:00]} Qb3+ {[%emt 0:01:53]} 43. Kg2 {[%emt 0:00:00]} Qb7+ {[%emt 0:00:06]} 44. Kg3 {[%emt 0:00:00]} Qb8+ {[%emt 0:00:11]} 45. f4 {[%emt 0:00:00]} Qb1 {[%emt 0:11:28]} 46. Kh4 {[%emt 0:00:00]} Qe1+ {[%emt 0:00:37]} 47. Kxh5 {[%emt 0:00:00]} Qe2+ {[%emt 0:00:16]} 48. Kh6 {[%emt 0:00:00]} f5 {[%emt 0:01:56]} 49. Qe7 {[%emt 0:00:00]} 1-0

[Event "Nordic Chess-ch 2019"]
[Site "Sarpsborg"]
[Date "2019.06.22"]
[Round "3.32"]
[White "Ulrichsen, Jarl H"]
[Black "Hauge, Tor Arne"]
[Result "1-0"]
[ECO "A48"]
[WhiteElo "2180"]
[BlackElo "2022"]
[Annotator "ChessBase"]
[PlyCount "138"]
[EventDate "2019.06.21"]
[EventType "swiss"]
[EventCountry "NOR"]
[SourceTitle "playchess.com"]
[Source "ChessBase"]
[SourceQuality "1"]
[TimeControl "40/5400+30:1800+30"]

1. d4 {[%emt 0:00:08]} Nf6 {[%emt 0:00:00]} 2. Nf3 {[%emt 0:00:32]} g6 {[%emt 0:00:07]} 3. Bg5 {[%emt 0:03:48]} Bg7 {[%emt 0:00:43]} 4. e3 {[%emt 0:02:20]} O-O {[%emt 0:04:01]} 5. Bd3 {[%emt 0:03:28]} c5 {[%emt 0:04:15]} 6. c3 {[%emt 0:02:06]} cxd4 {[%emt 0:00:40]} 7. exd4 {[%emt 0:02:02]} Qb6 {[%emt 0:11:17]} 8. Qb3 {[%emt 0:05:33]} Qxb3 {[%emt 0:00:26]} 9. axb3 {[%emt 0:00:07]} d5 {[%emt 0:01:11]} 10. Nbd2 {[%emt 0:03:10]} h6 {[%emt 0:06:49]} 11. Bf4 {[%emt 0:14:52]} Nc6 {[%emt 0:07:30]} 12. h3 {[%emt 0:07:35]} g5 {[%emt 0:07:31]} 13. Bh2 {[%emt 0:06:11]} g4 {[%emt 0:07:03]} 14. hxg4 {[%emt 0:12:38]} Nxg4 {[%emt 0:00:31]} 15. b4 {[%emt 0:03:22]} e5 {[%emt 0:22:34]} 16. dxe5 {[%emt 0:01:19]} Ncxe5 {[%emt 0:04:08]} 17. Nxe5 {[%emt 0:07:52]} Bxe5 {[%emt 0:00:57]} 18. Bxe5 {[%emt 0:00:37]} Nxe5 {[%emt 0:00:36]} 19. Bc2 {[%emt 0:03:02]} Re8 {[%emt 0:02:16]} 20. O-O {[%emt 0:02:29]} Nc4 {[%emt 0:01:55]} 21. Nxc4 {[%emt 0:00:42]} dxc4 {[%emt 0:00:05]} 22. Rfe1 {[%emt 0:01:55]} Rxe1+ {[%emt 0:03:01]} 23. Rxe1 {[%emt 0:00:07]} Be6 {[%emt 0:00:49]} 24. f3 {[%emt 0:02:29]} a5 {[%emt 0:02:24]} 25. Ra1 {[%emt 0:05:45]} b6 {[%emt 0:00:11]} 26. Be4 {[%emt 0:00:10]} Rb8 {[%emt 0:01:51]} 27. Kf2 {[%emt 0:01:11]} axb4 {[%emt 0:00:42]} 28. cxb4 {[%emt 0:00:07]} Kg7 {[%emt 0:01:41]} 29. Ra8 {[%emt 0:03:45]} Rxa8 {[%emt 0:00:08]} 30. Bxa8 {[%emt 0:05:38]} Kf6 {[%emt 0:00:26]} 31. Ke3 {[%emt 0:00:00]} Ke5 {[%emt 0:00:15]} 32. f4+ {[%emt 0:00:00]} Kd6 {[%emt 0:00:14]} 33. Kd4 {[%emt 0:00:00]} b5 {[%emt 0:00:32]} 34. Bf3 {[%emt 0:00:00]} f5 {[%emt 0:00:28]} 35. Bh5 {[%emt 0:00:00]} Bd7 {[%emt 0:01:41]} 36. g3 {[%emt 0:00:00]} Bc6 {[%emt 0:02:43]} 37. Bf7 {[%emt 0:00:30]} Bb7 {[%emt 0:01:21]} 38. Bg6 {[%emt 0:00:13]} Bc8 {[%emt 0:00:06]} 39. Be8 {[%emt 0:00:06]} Ba6 {[%emt 0:00:07]} 40. Bf7 {[%emt 0:01:38]} Bb7 {[%emt 0:00:10]} 41. Bg6 {[%emt 0:30:26]} Bc8 {[%emt 0:30:11]} 42. Bh5 {[%emt 0:00:52]} Bd7 {[%emt 0:04:44]} 43. Bf7 {[%emt 0:00:00]} Bc6 {[%emt 0:00:00]} 44. Bg8 {[%emt 0:00:00]} Bb7 {[%emt 0:00:00]} 45. b3 {[%emt 0:00:00]} cxb3 {[%emt 0:00:00]} 46. Bxb3 {[%emt 0:00:00]} Bc6 {[%emt 0:00:00]} 47. Bc2 {[%emt 0:00:00]} Bd7 {[%emt 0:00:00]} 48. Bd3 {[%emt 0:00:00]} Be8 {[%emt 0:00:00]} 49. Bxf5 {[%emt 0:00:00]} Bf7 {[%emt 0:00:00]} 50. Bd3 {[%emt 0:00:00]} Be8 {[%emt 0:00:00]} 51. Be2 {[%emt 0:00:00]} Bd7 {[%emt 0:00:00]} 52. Bh5 {[%emt 0:00:00]} Bh3 {[%emt 0:00:00]} 53. Bf7 {[%emt 0:00:00]} Bd7 {[%emt 0:00:00]} 54. Bh5 {[%emt 0:00:00]} Bh3 {[%emt 0:00:00]} 55. Be2 {[%emt 0:00:00]} Bd7 {[%emt 0:00:00]} 56. Ke4 {[%emt 0:00:00]} Be8 {[%emt 0:00:00]} 57. g4 {[%emt 0:00:00]} Bd7 {[%emt 0:00:00]} 58. f5 {[%emt 0:05:15]} Be8 {[%emt 0:00:00]} 59. Kd4 {[%emt 0:00:30]} Bd7 {[%emt 0:00:40]} 60. Bd1 {[%emt 0:00:13]} Bc6 {[%emt 0:00:51]} 61. Be2 {[%emt 0:00:40]} Bd7 {[%emt 0:00:13]} 62. Bf3 {[%emt 0:00:04]} Be8 {[%emt 0:00:26]} 63. Ke4 {[%emt 0:03:02]} Bc6+ {[%emt 0:00:47]} 64. Kf4 {[%emt 0:00:06]} Be8 {[%emt 0:00:25]} 65. g5 {[%emt 0:00:42]} hxg5+ {[%emt 0:00:34]} 66. Kxg5 {[%emt 0:00:04]} Ke5 {[%emt 0:01:27]} 67. f6 {[%emt 0:00:25]} Bf7 {[%emt 0:02:05]} 68. Be2 {[%emt 0:00:14]} Be8 {[%emt 0:02:43]} 69. Bxb5 {[%emt 0:00:13]} Bf7 {[%emt 0:05:59]} 1-0

[Event "Nordic Chess-ch 2019"]
[Site "Sarpsborg"]
[Date "2019.06.22"]
[Round "3.33"]
[White "Eriksson, Kristian"]
[Black "Andersen, Odd"]
[Result "1-0"]
[ECO "B15"]
[WhiteElo "2111"]
[BlackElo "1751"]
[Annotator "ChessBase"]
[PlyCount "60"]
[EventDate "2019.06.21"]
[EventType "swiss"]
[EventCountry "NOR"]
[SourceTitle "playchess.com"]
[Source "ChessBase"]
[SourceQuality "1"]
[TimeControl "40/5400+30:1800+30"]

1. e4 {[%emt 0:00:00]} c6 {[%emt 0:00:00]} 2. d4 {[%emt 0:00:00]} d5 {[%emt 0:00:00]} 3. Nc3 {[%emt 0:00:13]} dxe4 {[%emt 0:00:00]} 4. Nxe4 {[%emt 0:00:07]} Nf6 {[%emt 0:00:00]} 5. Nxf6+ {[%emt 0:00:44]} exf6 {[%emt 0:00:04]} 6. Nf3 {[%emt 0:00:57]} Bd6 {[%emt 0:00:17]} 7. Bd3 {[%emt 0:05:34]} O-O {[%emt 0:00:34]} 8. O-O {[%emt 0:01:44]} Re8 {[%emt 0:00:08]} 9. h3 {[%emt 0:03:06]} Nd7 {[%emt 0:01:17]} 10. c3 {[%emt 0:04:43]} Nf8 {[%emt 0:00:52]} 11. Be3 {[%emt 0:02:01]} Be6 {[%emt 0:00:30]} 12. Re1 {[%emt 0:10:34]} Qd7 {[%emt 0:01:15]} 13. Nd2 {[%emt 0:11:57]} Rad8 {[%emt 0:09:54]} 14. Qf3 {[%emt 0:04:45]} g6 {[%emt 0:03:41]} 15. Qxf6 {[%emt 0:02:04]} Be7 {[%emt 0:00:37]} 16. Qf3 {[%emt 0:05:26]} Bd5 {[%emt 0:00:26]} 17. Be4 {[%emt 0:01:43]} Be6 {[%emt 0:03:01]} 18. b3 {[%emt 0:03:23]} f5 {[%emt 0:00:50]} 19. Bd3 {[%emt 0:00:28]} Bd5 {[%emt 0:01:15]} 20. Bc4 {[%emt 0:01:32]} Bxc4 {[%emt 0:04:58]} 21. Nxc4 {[%emt 0:00:34]} Bf6 {[%emt 0:02:34]} 22. Bf4 {[%emt 0:02:11]} Rxe1+ {[%emt 0:11:48]} 23. Rxe1 {[%emt 0:00:37]} Re8 {[%emt 0:00:20]} 24. Rxe8 {[%emt 0:03:10]} Qxe8 {[%emt 0:00:03]} 25. Be5 {[%emt 0:01:53]} Nd7 {[%emt 0:02:37]} 26. Bxf6 {[%emt 0:03:30]} Nxf6 {[%emt 0:00:03]} 27. Qe3 {[%emt 0:02:25]} Qd7 {[%emt 0:03:50]} 28. Ne5 {[%emt 0:03:03]} Qd6 {[%emt 0:02:28]} 29. g4 {[%emt 0:07:46]} Nxg4 {[%emt 0:04:32]} 30. hxg4 {[%emt 0:00:37]} fxg4 {[%emt 0:47:06]} 1-0

[Event "Nordic Chess-ch 2019"]
[Site "Sarpsborg"]
[Date "2019.06.22"]
[Round "3.34"]
[White "Rukovci, Shemsi"]
[Black "Store, Trond"]
[Result "0-1"]
[ECO "B51"]
[WhiteElo "1907"]
[BlackElo "2100"]
[Annotator "ChessBase"]
[PlyCount "117"]
[EventDate "2019.06.21"]
[EventType "swiss"]
[EventCountry "NOR"]
[SourceTitle "playchess.com"]
[Source "ChessBase"]
[SourceQuality "1"]
[TimeControl "40/5400+30:1800+30"]

1. e4 {[%emt 0:00:53]} c5 {[%emt 0:00:00]} 2. Nf3 {[%emt 0:00:12]} d6 {[%emt 0:00:00]} 3. Bb5+ {[%emt 0:00:16]} Nd7 {[%emt 0:00:00]} 4. a4 {[%emt 0:05:34]} a6 {[%emt 0:03:05]} 5. Bc4 {[%emt 0:00:15]} e6 {[%emt 0:01:44]} 6. Nc3 {[%emt 0:01:37]} Ngf6 {[%emt 0:00:24]} 7. d3 {[%emt 0:01:50]} Be7 {[%emt 0:00:27]} 8. Qe2 {[%emt 0:02:17]} Ne5 {[%emt 0:11:10]} 9. Bb3 {[%emt 0:06:29]} Bd7 {[%emt 0:07:06]} 10. Nxe5 {[%emt 0:02:54]} dxe5 {[%emt 0:00:03]} 11. a5 {[%emt 0:00:27]} Bc6 {[%emt 0:10:12]} 12. Bd2 {[%emt 0:02:18]} Nd7 {[%emt 0:02:40]} 13. Qg4 {[%emt 0:03:58]} Bf6 {[%emt 0:06:45]} 14. h4 {[%emt 0:10:00]} h5 {[%emt 0:02:39]} 15. Qg3 {[%emt 0:03:22]} Rc8 {[%emt 0:03:54]} 16. Nd1 {[%emt 0:04:54]} Nf8 {[%emt 0:10:25]} 17. Ne3 {[%emt 0:06:48]} Bb5 {[%emt 0:02:50]} 18. Nc4 {[%emt 0:13:18]} Bxc4 {[%emt 0:00:27]} 19. Bxc4 {[%emt 0:00:22]} Qe7 {[%emt 0:05:46]} 20. Rb1 {[%emt 0:06:03]} Ng6 {[%emt 0:02:10]} 21. b4 {[%emt 0:02:57]} Bxh4 {[%emt 0:00:42]} 22. Qf3 {[%emt 0:01:10]} cxb4 {[%emt 0:00:49]} 23. Bxb4 {[%emt 0:00:53]} Qc7 {[%emt 0:00:17]} 24. Bd2 {[%emt 0:02:24]} Bf6 {[%emt 0:09:31]} 25. Rxh5 {[%emt 0:04:57]} Rxh5 {[%emt 0:00:05]} 26. Qxh5 {[%emt 0:00:41]} Kd7 {[%emt 0:00:24]} 27. Rb6 {[%emt 0:00:53]} Re8 {[%emt 0:05:12]} 28. Bb4 {[%emt 0:00:51]} Be7 {[%emt 0:10:09]} 29. c3 {[%emt 0:08:42]} Bxb4 {[%emt 0:02:09]} 30. cxb4 {[%emt 0:00:41]} Ke7 {[%emt 0:00:57]} 31. g3 {[%emt 0:04:02]} Kf6 {[%emt 0:00:24]} 32. Qf3+ {[%emt 0:00:48]} Ke7 {[%emt 0:00:09]} 33. Qe3 {[%emt 0:00:52]} Rc8 {[%emt 0:01:38]} 34. Qg5+ {[%emt 0:01:25]} Kf8 {[%emt 0:01:10]} 35. Qh5 {[%emt 0:00:40]} Rd8 {[%emt 0:00:56]} 36. Kf1 {[%emt 0:01:06]} Rd6 {[%emt 0:00:09]} 37. Rxd6 {[%emt 0:00:47]} Qxd6 {[%emt 0:00:02]} 38. Qg5 {[%emt 0:00:00]} Ne7 {[%emt 0:00:54]} 39. Qd2 {[%emt 0:00:16]} Nc6 {[%emt 0:00:20]} 40. b5 {[%emt 0:00:19]} axb5 {[%emt 0:00:39]} 41. Bxb5 {[%emt 0:30:29]} Qb4 {[%emt 0:04:21]} 42. Qxb4+ {[%emt 0:00:00]} Nxb4 {[%emt 0:00:02]} 43. Ke2 {[%emt 0:00:00]} Ke7 {[%emt 0:00:05]} 44. Kd2 {[%emt 0:00:00]} Kd6 {[%emt 0:02:24]} 45. Kc3 {[%emt 0:00:00]} Kc5 {[%emt 0:00:05]} 46. Be8 {[%emt 0:00:00]} f6 {[%emt 0:00:05]} 47. Bd7 {[%emt 0:00:00]} Nc6 {[%emt 0:01:02]} 48. Bxe6 {[%emt 0:00:00]} Nxa5 {[%emt 0:00:04]} 49. f4 {[%emt 0:00:00]} b5 {[%emt 0:00:14]} 50. Bd5 {[%emt 0:00:00]} b4+ {[%emt 0:00:44]} 51. Kd2 {[%emt 0:00:00]} Nc6 {[%emt 0:04:04]} 52. Ke3 {[%emt 0:00:00]} Nd4 {[%emt 0:01:27]} 53. g4 {[%emt 0:01:10]} b3 {[%emt 0:06:17]} 54. g5 {[%emt 0:01:56]} Kb4 {[%emt 0:01:54]} 55. gxf6 {[%emt 0:02:31]} gxf6 {[%emt 0:00:02]} 56. f5 {[%emt 0:01:17]} Ka3 {[%emt 0:01:06]} 57. Bxb3 {[%emt 0:00:36]} Kxb3 {[%emt 0:00:11]} 58. Kf2 {[%emt 0:00:23]} Kc3 {[%emt 0:00:14]} 59. Kg3 {[%emt 0:00:00]} 0-1